bitfinex/quotes_ETHUSD_20240827
["timestamp","ask_amount","ask_price","bid_price","bid_amount"]
[1724786498960,2.0,2593.4,2593.0,7.37]
[1724786499564,0.22664471,2593.3,2593.0,7.37]
[1724786502846,0.22664471,2593.3,2592.7,16.27697]
[1724786503048,0.22664471,2593.3,2592.8,1.861406]
[1724786503248,2.0,2593.4,2592.8,1.861406]
[1724786504782,2.0,2593.4,2592.8,5.79532734]
[1724786504987,2.0,2593.4,2592.9,2.3181]
[1724786505166,2.0,2593.4,2593.0,0.07711921]
[1724786505664,0.40264341,2593.9,2593.2,3.85615]
[1724786505889,0.40264341,2593.9,2593.3,0.07710643]
[1724786506197,0.22597128,2593.8,2593.3,0.07710643]
[1724786506344,0.22597128,2593.8,2593.3,1.05688755]
[1724786507353,0.22597128,2593.8,2593.4,0.07710648]
[1724786509755,0.22597128,2593.8,2593.2,0.07710662]
[1724786509952,0.40264341,2593.9,2593.2,0.07710662]
[1724786510592,0.40264341,2593.9,2593.1,9.6956]
[1724786510593,2.0,2593.6,2593.1,9.6956]
[1724786511393,2.0,2593.6,2593.1,10.94445352]
[1724786512954,2.0,2593.6,2593.2,0.07711492]
[1724786514252,2.0,2593.6,2593.1,10.94445352]
[1724786514691,2.0,2593.6,2593.1,3.57445352]
[1724786515503,2.0,2593.6,2593.2,6.15449]
[1724786515805,2.0,2593.6,2593.3,0.0771105]
[1724786519780,2.0,2593.6,2593.2,2.2983]
[1724786522705,0.40264341,2593.9,2593.3,0.07711837]
[1724786525432,0.40264341,2593.9,2593.2,2.2983]
[1724786527644,2.0,2593.6,2593.2,2.2983]
[1724786528248,2.02241967,2593.6,2593.2,2.2983]
[1724786529115,2.02241967,2593.6,2592.9,2.269]
[1724786529320,2.0,2593.3,2592.9,2.269]
[1724786529672,2.0,2593.3,2592.1,13.22176052]
[1724786529673,2.0,2593.0,2592.6,2.269]
[1724786530017,0.22622903,2592.9,2592.6,2.269]
[1724786531357,2.4067,2593.3,2592.7,0.07713362]
[1724786531358,2.0,2593.3,2592.7,0.07713362]
[1724786531648,0.22593798,2593.2,2592.7,0.07713362]
[1724786533381,0.22593798,2593.2,2592.6,2.269]
[1724786533544,0.24835765,2593.2,2592.6,2.269]
[1724786533876,0.22593798,2593.2,2592.6,2.269]
[1724786534081,0.22593798,2593.2,2592.7,0.07712895]
[1724786538140,0.22593798,2593.2,2592.8,2.3746]
[1724786538455,2.0,2593.3,2592.8,2.3746]
[1724786538634,0.22593798,2593.2,2592.8,2.3746]
[1724786538840,2.0,2593.3,2592.8,2.3746]
[1724786539038,0.22593798,2593.2,2592.8,2.3746]
[1724786539239,2.0,2593.3,2592.8,2.3746]
[1724786539441,0.22593798,2593.2,2592.8,2.3746]
[1724786539752,2.0,2593.3,2592.8,2.3746]
[1724786539991,0.22540578,2593.1,2592.8,2.3746]
[1724786540203,0.40213347,2593.2,2592.8,2.3746]
[1724786540369,0.22540578,2593.0,2592.8,2.3746]
[1724786540554,0.40213347,2593.2,2592.8,2.3746]
[1724786540754,0.22540578,2592.9,2592.8,2.3746]
[1724786540953,0.40213347,2593.2,2592.8,2.3746]
[1724786541151,0.22540578,2592.9,2592.8,2.3746]
[1724786541373,0.40213347,2593.2,2592.8,2.3746]
[1724786541866,0.22540578,2593.1,2592.8,2.3746]
[1724786543557,0.22540578,2593.1,2592.8,2.61206]
[1724786543759,0.22540578,2593.1,2592.8,2.3746]
[1724786544367,0.22540578,2593.1,2593.0,2.4866]
[1724786544760,0.40213347,2593.2,2593.0,2.4866]
[1724786545868,0.40213347,2593.2,2593.1,0.07712037]
[1724786546068,2.0,2593.7,2593.1,2.68079241]
[1724786546459,0.22540578,2593.6,2593.2,2.3473]
[1724786546652,0.40216181,2593.8,2593.4,2.3473]
[1724786546873,0.22540578,2593.7,2593.4,2.3473]
[1724786547264,0.40216181,2593.8,2593.4,2.3473]
[1724786547479,0.22540578,2593.7,2593.4,2.3473]
[1724786547982,0.40216181,2593.8,2593.4,2.3473]
[1724786548384,0.22540578,2593.7,2593.4,2.3473]
[1724786548714,0.40216181,2593.8,2593.4,2.3473]
[1724786548931,0.40216181,2593.8,2593.6,2.4317]
[1724786549214,2.0,2594.7,2593.8,2.4794]
[1724786549370,2.0,2594.7,2594.0,2.4794]
[1724786549567,2.0,2594.7,2593.9,11.3263097]
[1724786549568,0.22540578,2594.6,2594.2,2.4794]
[1724786549814,0.40235565,2594.8,2594.4,2.4794]
[1724786549996,0.40235565,2594.8,2594.5,0.07707576]
[1724786550316,0.22583822,2594.7,2594.5,0.07707576]
[1724786550718,0.40235565,2594.8,2594.5,0.07707576]
[1724786551199,0.22583822,2594.7,2594.5,0.07707576]
[1724786551601,0.40235565,2594.8,2594.5,0.07707576]
[1724786551819,0.40235565,2594.8,2594.4,2.4794]
[1724786551981,0.22583822,2594.7,2594.4,2.4794]
[1724786552377,0.40235565,2594.8,2594.4,2.4794]
[1724786552799,0.22583822,2594.7,2594.4,2.4794]
[1724786553224,0.40235565,2594.8,2594.4,2.4794]
[1724786553387,0.22583822,2594.6,2594.4,2.4794]
[1724786553586,0.40235565,2594.8,2594.4,2.4794]
[1724786553998,0.22583822,2594.7,2594.4,2.4794]
[1724786554199,0.22583822,2594.7,2594.4,2.55647612]
[1724786554455,0.22583822,2594.6,2594.4,2.4794]
[1724786555127,2.0,2594.7,2594.4,2.4794]
[1724786555289,0.22690224,2594.5,2594.4,2.4794]
[1724786555490,2.0,2594.7,2594.4,2.4794]
[1724786555691,0.22690224,2594.5,2594.4,2.4794]
[1724786555909,2.0,2594.7,2594.4,2.4794]
[1724786556302,0.22690224,2594.6,2594.4,2.4794]
[1724786556541,2.0,2594.7,2594.4,2.4794]
[1724786557133,0.22690224,2594.6,2594.4,2.4794]
[1724786557540,2.0,2594.7,2594.4,2.4794]
[1724786557831,0.22690224,2594.5,2594.4,2.4794]
[1724786558128,2.0,2594.7,2594.4,2.4794]
[1724786558328,0.22690224,2594.5,2594.4,2.4794]
[1724786558537,2.0,2594.7,2594.4,2.4794]
[1724786558890,0.22690224,2594.6,2594.4,2.4794]
[1724786559330,2.0,2594.7,2594.4,2.4794]
[1724786559995,0.22690224,2594.6,2594.4,2.4794]
[1724786560192,2.0,2594.7,2594.4,2.4794]
[1724786560632,0.22690224,2594.6,2594.4,2.4794]
[1724786561009,2.0,2594.7,2594.4,2.4794]
[1724786561397,0.22690224,2594.6,2594.4,2.4794]
[1724786561933,2.0,2594.7,2594.4,2.4794]
[1724786562134,0.22690224,2594.5,2594.4,2.4794]
[1724786562429,0.40235565,2594.8,2594.4,2.73504817]
[1724786562633,0.40235565,2594.8,2594.6,2.4154]
[1724786562797,0.22690224,2594.7,2594.6,2.4154]
[1724786563203,0.40235565,2594.8,2594.6,2.4154]
[1724786563518,0.22690224,2594.7,2594.6,2.4154]
[1724786563830,0.40235565,2594.8,2594.6,2.4154]
[1724786564030,0.22690224,2594.7,2594.6,2.4154]
[1724786564334,0.40235565,2594.8,2594.6,2.4154]
[1724786564515,0.22690224,2594.7,2594.6,2.4154]
[1724786564726,0.40235565,2594.8,2594.6,2.4154]
[1724786565042,2.25016961,2594.7,2594.1,2.4154]
[1724786566097,2.22774994,2594.7,2594.1,2.4154]
[1724786567725,0.02241967,2594.6,2594.1,2.4154]
[1724786568122,2.0,2594.4,2594.1,2.4154]
[1724786568932,0.22783302,2594.3,2594.1,2.4154]
[1724786571537,2.02241967,2594.4,2594.1,2.4154]
[1724786571698,2.0,2594.4,2594.1,2.4154]
[1724786584948,0.02241967,2594.3,2593.7,2.2589]
[1724786585137,2.0,2594.1,2593.7,2.2589]
[1724786591624,2.0,2594.1,2593.7,3.75487247]
[1724786598495,0.40215038,2594.3,2594.1,2.3499]
[1724786598645,0.40215038,2594.3,2594.1,6.28187599]
[1724786598847,2.0,2594.8,2594.2,1.16119606]
[1724786599077,2.0,2594.8,2594.4,2.3499]
[1724786599288,0.22719324,2594.7,2594.4,2.3499]
[1724786599589,2.0,2594.8,2594.4,2.85622223]
[1724786600303,0.22719324,2594.7,2594.4,2.85622223]
[1724786600592,2.0,2594.8,2594.4,2.85622223]
[1724786600804,0.22719324,2594.6,2594.4,2.3499]
[1724786600995,2.0,2594.8,2594.4,2.3499]
[1724786601303,0.22719324,2594.5,2594.4,2.3499]
[1724786601651,2.0,2594.8,2594.4,2.3499]
[1724786602082,0.22719324,2594.7,2594.4,2.3499]
[1724786602482,2.0,2594.8,2594.4,2.3499]
[1724786602689,0.22719324,2594.6,2594.4,2.3499]
[1724786602962,2.0,2594.8,2594.4,2.3499]
[1724786603197,0.22719324,2594.5,2594.4,2.3499]
[1724786603503,2.0,2594.8,2594.0,2.3499]
[1724786603827,0.22719324,2594.7,2594.1,0.385494]
[1724786604476,2.02241967,2594.8,2594.1,0.385494]
[1724786604802,2.0,2594.8,2594.1,0.385494]
[1724786606308,2.0,2594.8,2594.3,2.3797]
[1724786606705,0.22751731,2594.7,2594.3,2.45678179]
[1724786607269,2.0,2594.8,2594.3,2.45678179]
[1724786607912,0.22751731,2594.7,2594.3,2.45678179]
[1724786608289,2.0,2594.8,2594.3,2.45678179]
[1724786608489,0.22751731,2594.6,2594.3,2.45678179]
[1724786608790,2.0,2594.8,2594.3,2.45678179]
[1724786608989,0.22751731,2594.5,2594.3,2.45678179]
[1724786609192,2.0,2594.8,2594.3,2.91586777]
[1724786609415,0.22751731,2594.4,2594.3,2.91586777]
[1724786609588,2.0,2594.8,2594.3,2.91586777]
[1724786609909,2.0,2594.8,2594.3,2.3797]
[1724786609910,0.22751731,2594.4,2594.3,2.3797]
[1724786610072,2.0,2594.8,2594.3,2.3797]
[1724786610272,2.02241967,2594.8,2594.3,2.3797]
[1724786610470,0.22751731,2594.7,2594.3,2.3797]
[1724786610876,2.02241967,2594.8,2594.3,2.3797]
[1724786611076,0.22751731,2594.6,2594.3,2.3797]
[1724786611279,2.02241967,2594.8,2594.3,2.3797]
[1724786611815,0.22751731,2594.7,2594.3,2.3797]
[1724786612016,2.02241967,2594.8,2594.3,2.3797]
[1724786612307,0.22751731,2594.6,2594.3,2.3797]
[1724786612514,2.02241967,2594.8,2594.3,2.3797]
[1724786612877,0.22751731,2594.7,2594.3,2.3797]
[1724786613301,2.0,2594.8,2594.3,2.3797]
[1724786613503,0.22751731,2594.6,2594.3,2.3797]
[1724786613820,0.22751731,2594.5,2594.3,2.3797]
[1724786613979,2.0,2594.8,2594.3,2.3797]
[1724786614913,0.22747577,2594.7,2594.3,2.3797]
[1724786615140,2.02241967,2594.8,2594.3,2.3797]
[1724786615341,0.22747577,2594.6,2594.3,2.3797]
[1724786615515,2.02241967,2594.8,2594.3,2.3797]
[1724786615701,0.22747577,2594.7,2594.3,2.3797]
[1724786616107,0.22747577,2594.6,2594.3,2.3797]
[1724786616348,2.0,2594.8,2594.3,2.3797]
[1724786616648,0.22747577,2594.5,2594.3,2.3797]
[1724786616811,2.0,2594.8,2594.3,2.3797]
[1724786617447,0.22747577,2594.7,2594.3,2.3797]
[1724786617839,2.0,2594.8,2594.3,2.3797]
[1724786618050,0.22747577,2594.6,2594.3,2.3797]
[1724786618211,2.0,2594.8,2594.3,2.3797]
[1724786618411,0.22747577,2594.5,2594.3,2.248962]
[1724786618641,2.02241967,2594.8,2594.3,2.248962]
[1724786619012,0.22747577,2594.7,2594.3,2.248962]
[1724786619250,2.02241967,2594.8,2594.3,2.248962]
[1724786619426,0.22747577,2594.6,2594.3,2.248962]
[1724786619753,2.02241967,2594.8,2594.3,2.248962]
[1724786619948,0.22747577,2594.5,2594.3,2.248962]
[1724786620139,2.02241967,2594.8,2594.3,2.248962]
[1724786620306,0.22747577,2594.4,2594.3,2.248962]
[1724786620505,2.02241967,2594.8,2594.3,2.248962]
[1724786620753,0.22747577,2594.7,2594.3,2.248962]
[1724786621051,2.02241967,2594.8,2594.3,2.248962]
[1724786621206,0.22747577,2594.6,2594.3,2.248962]
[1724786621409,2.02241967,2594.8,2594.3,2.248962]
[1724786621650,0.22747577,2594.5,2594.3,2.248962]
[1724786621856,2.0,2594.8,2594.3,2.248962]
[1724786622229,0.22747577,2594.7,2594.3,2.248962]
[1724786622541,0.22747577,2594.6,2594.3,2.248962]
[1724786622753,2.0,2594.8,2594.3,2.248962]
[1724786622940,0.22747577,2594.5,2594.3,2.248962]
[1724786623135,2.0,2594.8,2594.3,2.248962]
[1724786623342,0.22747577,2594.7,2594.3,2.248962]
[1724786623638,2.0,2594.8,2594.3,2.32604404]
[1724786623841,0.22747577,2594.6,2594.3,2.32604404]
[1724786624043,2.0,2594.8,2594.3,2.32604404]
[1724786624240,0.22747577,2594.5,2594.3,2.32604404]
[1724786624544,0.22747577,2594.4,2594.3,2.248962]
[1724786624875,2.0,2594.8,2594.3,2.248962]
[1724786625024,0.22747577,2594.4,2594.3,2.248962]
[1724786625228,2.0,2594.8,2594.3,2.248962]
[1724786625428,0.22747577,2594.4,2594.3,2.248962]
[1724786625629,2.0,2594.8,2594.3,2.248962]
[1724786625826,0.22747577,2594.4,2594.3,2.248962]
[1724786626028,0.02241967,2594.7,2594.3,2.248962]
[1724786626668,0.22747577,2594.6,2594.3,2.248962]
[1724786627029,2.4020777,2594.8,2594.3,2.248962]
[1724786627231,0.22747577,2594.5,2594.3,2.248962]
[1724786627433,2.4020777,2594.8,2594.3,2.248962]
[1724786627668,0.22747577,2594.4,2594.3,2.248962]
[1724786627861,2.4020777,2594.8,2594.3,2.248962]
[1724786628065,0.22747577,2594.4,2594.3,2.248962]
[1724786628378,2.4020777,2594.8,2594.3,2.248962]
[1724786628527,0.22747577,2594.4,2594.3,2.248962]
[1724786628722,2.4020777,2594.8,2594.3,2.248962]
[1724786628940,0.22750067,2594.7,2594.3,2.248962]
[1724786629128,2.4020777,2594.8,2594.3,2.248962]
[1724786629454,0.22750067,2594.7,2594.3,2.248962]
[1724786629974,0.22750067,2594.6,2594.3,2.248962]
[1724786630188,2.4020777,2594.8,2594.3,2.248962]
[1724786630465,0.22750067,2594.5,2594.3,2.248962]
[1724786630768,0.22750067,2594.4,2594.3,2.248962]
[1724786630980,2.4020777,2594.8,2594.3,2.248962]
[1724786631130,0.22750067,2594.4,2594.3,2.248962]
[1724786631326,2.42449737,2594.8,2594.3,2.248962]
[1724786631544,0.22750067,2594.7,2594.3,2.248962]
[1724786631787,2.42449737,2594.8,2594.3,2.248962]
[1724786631995,0.22750067,2594.6,2594.5,2.343]
[1724786632143,2.4020777,2594.8,2594.5,2.343]
[1724786632338,0.22750067,2594.6,2594.5,2.343]
[1724786632660,2.4020777,2594.8,2594.5,2.343]
[1724786632847,0.22750067,2594.6,2594.5,2.343]
[1724786633047,2.4020777,2594.8,2594.5,2.343]
[1724786633277,0.22750067,2594.6,2594.5,2.343]
[1724786633757,2.4020777,2594.8,2594.5,2.343]
[1724786634000,0.22750067,2594.6,2594.5,2.343]
[1724786634176,2.4020777,2594.8,2594.5,2.343]
[1724786634378,0.22750067,2594.6,2594.5,2.343]
[1724786634576,2.4020777,2594.8,2594.5,2.343]
[1724786634805,0.22750067,2594.6,2594.5,2.343]
[1724786635120,2.4020777,2594.8,2594.5,2.343]
[1724786635316,0.22750067,2594.6,2594.5,2.343]
[1724786635915,2.4020777,2594.8,2594.5,2.343]
[1724786636119,0.22750067,2594.6,2594.5,2.343]
[1724786636281,2.4020777,2594.8,2594.5,2.343]
[1724786636483,0.22750067,2594.6,2594.5,2.343]
[1724786636684,2.4020777,2594.8,2594.5,2.343]
[1724786637179,2.4020777,2594.8,2593.9,11.22517]
[1724786637180,0.22750067,2594.7,2594.0,2.3491]
[1724786638438,0.24992034,2594.7,2594.0,2.3491]
[1724786639902,0.24992034,2594.7,2594.0,3.82414465]
[1724786641758,0.02241967,2594.7,2594.0,3.82414465]
[1724786643942,2.0,2594.5,2594.0,2.3491]
[1724786644457,0.25004499,2594.4,2594.0,2.3491]
[1724786644629,0.65200533,2594.4,2593.9,7.37]
[1724786645625,0.65200533,2594.4,2593.8,2.24755706]
[1724786645823,0.42438001,2594.4,2593.8,2.24755706]
[1724786657089,2.0,2594.1,2593.6,7.37]
[1724786657853,2.40201323,2594.1,2593.6,7.37]
[1724786660386,2.40201323,2594.1,2593.5,2.4859]
[1724786661082,2.40201323,2594.1,2593.5,3.96094465]
[1724786661285,2.40201323,2594.1,2593.6,3.26064358]
[1724786661597,2.40201323,2594.1,2593.5,3.96094465]
[1724786661794,2.40201323,2594.1,2593.5,2.4859]
[1724786663268,2.40201323,2594.1,2593.5,3.96094465]
[1724786665399,2.40201323,2594.1,2593.6,1.47504465]
[1724786665569,2.40201323,2594.1,2593.5,3.96094465]
[1724786665889,2.40201323,2594.1,2593.5,6.57414265]
[1724786666197,2.40201323,2594.1,2593.5,5.099098]
[1724786666371,2.40201323,2594.1,2593.5,2.4859]
[1724786668169,2.0,2593.8,2593.5,2.4859]
[1724786668496,0.02241967,2593.7,2593.3,7.37]
[1724786668866,0.42448839,2593.7,2593.3,7.37]
[1724786671618,0.40206872,2593.7,2593.3,7.37]
[1724786672270,0.40206872,2593.7,2593.1,3.89814465]
[1724786672459,0.40206872,2593.7,2593.2,2.36881446]
[1724786675692,0.42448839,2593.7,2593.2,2.36881446]
[1724786677484,0.40206872,2593.7,2593.2,2.36881446]
[1724786678610,0.40206872,2593.7,2593.1,3.89814465]
[1724786680392,0.00958507,2593.7,2593.1,3.89814465]
[1724786680802,2.02241967,2593.8,2593.1,3.89814465]
[1724786681003,2.0,2593.8,2593.1,3.89814465]
[1724786681209,0.22659481,2593.7,2593.1,3.89814465]
[1724786681525,2.0,2593.8,2593.2,1.51246746]
[1724786681970,0.22659481,2593.7,2593.2,1.51246746]
[1724786682168,0.02241967,2593.7,2593.2,1.51246746]
[1724786682406,2.0,2593.8,2593.2,1.51246746]
[1724786682604,0.22659481,2593.7,2593.2,1.51246746]
[1724786682830,2.0,2593.8,2593.3,0.54106121]
[1724786683010,0.22659481,2593.7,2593.3,0.54106121]
[1724786683309,2.0,2593.8,2593.3,0.54106121]
[1724786683671,0.22659481,2593.7,2593.3,0.54106121]
[1724786683872,2.0,2593.8,2593.3,0.54106121]
[1724786684122,0.22659481,2593.7,2593.3,0.54106121]
[1724786684418,2.0,2593.8,2593.3,0.54106121]
[1724786684629,0.22666134,2593.7,2593.3,0.54106121]
[1724786684787,2.0,2593.8,2593.3,0.54106121]
[1724786684983,0.22666134,2593.7,2593.3,0.54106121]
[1724786685224,2.0,2593.8,2593.3,0.54106121]
[1724786685533,0.22666134,2593.7,2593.3,0.54106121]
[1724786685817,2.0,2593.8,2593.3,0.54106121]
[1724786686025,0.22666134,2593.7,2593.3,0.54106121]
[1724786686231,2.0,2593.8,2593.3,0.54106121]
[1724786686381,0.22666134,2593.7,2593.3,0.54106121]
[1724786686606,2.0,2593.8,2593.3,0.54106121]
[1724786686810,0.22666134,2593.7,2593.3,0.54106121]
[1724786687160,2.0,2593.8,2593.3,0.54106121]
[1724786687538,0.22666134,2593.7,2593.3,0.54106121]
[1724786687942,2.0,2593.8,2593.4,0.20535287]
[1724786688126,2.0,2593.8,2593.3,0.54106121]
[1724786688316,0.22666134,2593.7,2593.3,0.54106121]
[1724786688741,2.0,2593.8,2593.3,0.54106121]
[1724786689115,0.22666134,2593.7,2593.3,0.54106121]
[1724786689518,2.0,2593.8,2593.3,0.54106121]
[1724786690040,0.22666134,2593.7,2593.3,0.54106121]
[1724786690243,2.0,2593.8,2593.3,0.54106121]
[1724786690414,0.22666134,2593.7,2593.3,0.54106121]
[1724786690627,2.0,2593.8,2593.3,0.54106121]
[1724786690826,0.22666134,2593.7,2593.3,0.54106121]
[1724786691148,2.0,2593.8,2593.3,0.54106121]
[1724786691656,0.22666134,2593.7,2593.3,0.54106121]
[1724786691948,2.0,2593.8,2593.3,0.54106121]
[1724786692387,0.22641698,2593.7,2593.4,2.2876]
[1724786692517,0.22641698,2593.7,2593.6,2.2876]
[1724786692711,2.0,2594.1,2593.7,2.2876]
[1724786693016,2.0,2594.1,2593.9,2.2876]
[1724786693017,0.22635879,2594.0,2593.9,2.2876]
[1724786695658,3.0,2594.8,2593.9,2.2876]
[1724786695659,7.44,2595.4,2594.7,2.3563]
[1724786695862,12.28,2595.9,2594.7,2.3563]
[1724786695863,2.0,2595.9,2594.7,2.3563]
[1724786696071,0.02241967,2595.8,2595.0,1.47504465]
[1724786698323,0.02241967,2595.8,2595.0,5.32858465]
[1724786699466,0.02241967,2595.8,2595.0,5.32852465]
[1724786700446,0.02241967,2595.8,2595.2,1.47504465]
[1724786700813,2.0,2595.9,2595.4,1.47504465]
[1724786701416,0.02241967,2596.1,2595.5,0.07704899]
[1724786702272,0.02241967,2596.1,2595.4,1.55209306]
[1724786702578,3.40198226,2596.2,2595.6,1.47504465]
[1724786703135,0.40198226,2596.2,2595.6,1.5520905]
[1724786703474,0.20411399,2596.1,2595.8,1.47504465]
[1724786703681,0.20411399,2596.1,2595.9,0.07703666]
[1724786704644,0.20411399,2596.1,2595.2,6.59194]
[1724786704645,0.20411399,2596.1,2595.6,1.47504465]
[1724786704847,0.20411399,2596.1,2595.2,2.352]
[1724786704848,2.0,2595.6,2594.9,2.3371]
[1724786705085,0.22804215,2595.5,2594.9,2.3371]
[1724786705451,0.22804215,2595.5,2594.6,3.85406]
[1724786705452,0.22804215,2595.5,2594.6,2.4704]
[1724786705780,0.22804215,2595.5,2594.7,1.47504465]
[1724786705979,0.22804215,2595.5,2594.6,6.32446]
[1724786706669,0.20562248,2595.5,2594.6,6.32446]
[1724786706865,0.20562248,2595.5,2594.7,4.84012737]
[1724786707368,0.20562248,2595.5,2594.8,3.85384]
[1724786707553,0.20562248,2595.5,2594.8,3.85377]
[1724786707742,3.42434044,2595.8,2594.8,3.85377]
[1724786707941,0.20676447,2595.4,2594.8,4.97020474]
[1724786708156,0.02241967,2595.7,2594.8,4.97020474]
[1724786708380,0.20676447,2595.3,2594.8,4.97020474]
[1724786708585,0.02241967,2595.7,2594.8,4.97020474]
[1724786709086,0.20676447,2595.6,2594.8,4.97020474]
[1724786710981,0.20676447,2595.6,2594.9,1.02637612]
[1724786711487,2.0,2595.6,2594.9,0.94931459]
[1724786711697,0.20676447,2595.5,2594.9,0.94931459]
[1724786715279,0.22918414,2595.5,2594.8,1.11643474]
[1724786719477,0.20676447,2595.5,2594.8,1.11643474]
[1724786719981,0.20676447,2595.5,2594.8,4.97027474]
[1724786721741,2.4456,2595.4,2594.8,1.11643474]
[1724786721917,2.4456,2595.4,2594.7,11.224]
[1724786722075,0.20628967,2595.3,2594.7,11.224]
[1724786722275,2.4456,2595.4,2594.7,11.224]
[1724786722501,0.20628967,2595.3,2594.7,11.224]
[1724786722702,2.4456,2595.4,2594.7,12.978858]
[1724786722901,0.20628967,2595.3,2594.7,12.978858]
[1724786723076,2.4456,2595.4,2594.7,12.978858]
[1724786723287,0.20628967,2595.3,2594.7,12.978858]
[1724786723523,2.4456,2595.4,2594.7,12.978858]
[1724786724318,0.20628967,2595.3,2594.7,12.978858]
[1724786724723,2.4456,2595.4,2594.7,12.978858]
[1724786724882,2.4456,2595.4,2594.7,11.22399]
[1724786725083,0.20628967,2595.3,2594.7,11.22399]
[1724786725297,4.4718,2595.6,2594.8,3.85375]
[1724786725511,0.20628967,2595.5,2594.8,3.85375]
[1724786725914,0.22870934,2595.5,2594.8,3.85375]
[1724786726817,0.22870934,2595.5,2594.7,7.37]
[1724786728332,0.63064219,2595.5,2594.7,7.37]
[1724786730255,2.0,2595.2,2594.7,7.37]
[1724786730452,2.0,2594.9,2594.7,7.37]
[1724786730624,0.02241967,2594.8,2594.2,7.37]
[1724786730810,0.22840104,2594.8,2594.2,7.37]
[1724786731007,0.02241967,2594.8,2594.2,7.37]
[1724786731215,0.20574802,2594.7,2594.2,7.37]
[1724786732954,0.02241967,2594.8,2594.2,7.37]
[1724786733311,0.20574802,2594.7,2594.4,3.85442]
[1724786733509,2.2794,2595.3,2594.5,0.07707529]
[1724786733714,0.20550629,2595.2,2594.5,0.07707529]
[1724786733960,2.2794,2595.3,2594.5,4.92732319]
[1724786734404,0.20550629,2595.2,2594.5,4.92732319]
[1724786734712,2.2794,2595.3,2594.5,4.92732319]
[1724786734958,0.20550629,2595.2,2594.5,4.92732319]
[1724786735119,0.20550629,2595.2,2594.6,0.84641369]
[1724786735319,2.2794,2595.3,2594.7,0.0770662]
[1724786735511,0.20550629,2595.2,2594.6,0.84641369]
[1724786735716,2.2794,2595.3,2594.6,0.84641369]
[1724786735945,0.20550629,2595.2,2594.6,0.84641369]
[1724786737829,0.22792596,2595.2,2594.6,0.84641369]
[1724786738366,0.22792596,2595.2,2594.5,0.9959479]
[1724786739420,0.20550629,2595.2,2594.5,0.9959479]
[1724786739620,0.20550629,2595.2,2594.5,1.07301621]
[1724786748119,0.20550629,2595.2,2594.5,0.9959479]
[1724786748818,0.20550629,2595.2,2594.6,0.07706847]
[1724786750624,0.20550629,2595.2,2594.6,0.56981511]
[1724786760337,0.22792596,2595.2,2594.6,0.49274664]
[1724786761045,0.22792596,2595.2,2594.6,0.56981539]
[1724786761189,0.20550629,2595.2,2594.6,0.56981539]
[1724786762737,0.20550629,2595.2,2594.8,2.4991]
[1724786762895,0.20550629,2595.2,2594.9,1.47390196]
[1724786763093,2.4355,2595.7,2595.1,1.47390196]
[1724786763292,2.4355,2595.7,2595.2,0.07705562]
[1724786763497,4.0,2595.3,2595.2,0.07705562]
[1724786763809,2.4355,2595.7,2595.1,0.07705907]
[1724786764647,2.45791967,2595.7,2594.8,2.95338174]
[1724786764829,2.3804,2595.4,2594.5,9.7145]
[1724786765034,0.02241967,2595.3,2594.5,9.7145]
[1724786765606,0.02241967,2595.3,2594.6,1.47390196]
[1724786768556,0.02241967,2595.3,2594.5,7.37]
[1724786768705,2.3235,2595.2,2594.5,7.37]
[1724786769604,2.0,2594.9,2594.5,7.37]
[1724786769809,2.3235,2594.7,2594.0,2.4286]
[1724786770003,2.3235,2594.7,2594.0,3.2430392]
[1724786770452,0.20575637,2594.6,2594.0,3.2430392]
[1724786770953,2.3235,2594.7,2594.0,4.71694116]
[1724786771460,2.3235,2594.7,2594.2,1.47390196]
[1724786771748,0.20575637,2594.6,2594.2,1.47390196]
[1724786772139,2.3235,2594.7,2594.2,1.47390196]
[1724786774224,0.20575637,2594.6,2594.2,2.33110008]
[1724786774642,2.3235,2594.7,2594.2,2.33110008]
[1724786775037,0.20575637,2594.6,2594.2,2.33110008]
[1724786775350,0.20575637,2594.6,2594.2,0.85719812]
[1724786775549,2.3235,2594.7,2594.2,0.85719812]
[1724786776554,2.0,2594.9,2594.3,0.07708522]
[1724786776907,0.20547297,2594.8,2594.4,7.72672196]
[1724786777054,0.20547297,2594.8,2594.6,5.32803196]
[1724786777266,2.3126,2595.4,2594.7,0.07706902]
[1724786777567,2.3126,2595.4,2594.7,0.60987222]
[1724786777932,2.3126,2595.4,2594.8,3.76530196]
[1724786778146,2.3126,2595.4,2594.8,2.2914]
[1724786778480,2.33501967,2595.4,2594.7,0.5328032]
[1724786778634,2.33501967,2595.4,2594.8,0.68033832]
[1724786779142,2.33501967,2595.4,2594.7,0.5328032]
[1724786785179,2.0,2595.2,2594.7,0.5328032]
[1724786785473,2.30531967,2595.1,2594.5,7.37]
[1724786788365,2.30531967,2595.1,2594.2,9.6313]
[1724786788672,2.25531967,2595.1,2594.3,1.348611]
[1724786789672,0.20534798,2595.0,2594.3,1.348611]
[1724786789874,0.20534798,2595.0,2594.2,9.6313]
[1724786790335,0.20534798,2595.0,2594.3,0.07708125]
[1724786791052,0.20534798,2595.0,2594.3,3.93168125]
[1724786791435,2.40181372,2595.2,2594.6,3.85407]
[1724786791639,0.20534798,2594.9,2594.7,0.385407]
[1724786791840,2.0,2595.2,2594.7,0.385407]
[1724786792342,0.20534798,2595.1,2594.7,0.385407]
[1724786792536,0.20534798,2595.1,2594.5,3.9313586]
[1724786792874,2.0,2595.2,2594.5,3.9313586]
[1724786793375,0.20534798,2595.1,2594.5,3.85429]
[1724786793554,2.0,2595.2,2594.5,3.85429]
[1724786793555,2.0,2595.2,2594.6,0.997002]
[1724786793872,0.20534798,2595.1,2594.6,0.997002]
[1724786794074,0.20534798,2595.1,2594.7,0.07706849]
[1724786794232,2.0,2595.2,2594.7,0.07706849]
[1724786794436,0.20534798,2595.0,2594.6,0.997002]
[1724786794666,2.0,2595.2,2594.7,0.4851292]
[1724786796183,2.0,2595.2,2594.4,6.11575]
[1724786796184,0.20534798,2595.1,2594.4,6.11575]
[1724786796362,2.0,2595.2,2594.4,6.11575]